bitfinex-derivatives/quotes_ETHF0:USTF0_20250209
["timestamp","ask_amount","ask_price","bid_price","bid_amount"]
[1739105109792,0.558,2652.9,2652.4,0.5953]
[1739105110593,0.558,2652.9,2652.5,3.2078]
[1739105110983,0.00565643,2653.0,2652.5,3.2078]
[1739105111789,0.00565643,2653.0,2652.4,0.5953]
[1739105112494,0.00565643,2653.0,2652.5,3.2078]
[1739105114784,0.00565643,2653.0,2652.8,3.2078]
[1739105114986,0.00565643,2653.0,2652.9,1.7398]
[1739105115489,0.00565643,2653.0,2652.9,1.1416]
[1739105122895,0.00565643,2653.0,2652.9,4.3494]
[1739105123395,0.00565643,2653.0,2652.9,45.1494]
[1739105124094,0.00565643,2653.0,2652.9,1.1416]
[1739105125701,0.00565643,2653.0,2652.6,3.2078]
[1739105126194,0.00565643,2653.0,2652.5,43.591]
[1739105126399,0.00565643,2653.0,2652.6,3.2078]
[1739105127893,0.00565643,2653.0,2652.5,43.591]
[1739105128397,0.00565643,2653.0,2652.6,3.2078]
[1739105129502,0.00565643,2653.0,2652.5,43.591]
[1739105130100,0.00565643,2653.0,2652.6,3.2078]
[1739105130301,0.00565643,2653.0,2652.5,43.591]
[1739105130603,0.00565643,2653.0,2652.5,46.7988]
[1739105131502,3.2078,2652.6,2652.1,0.00565643]
[1739105131702,1.1815,2652.5,2652.1,0.00565643]
[1739105131904,3.2078,2652.3,2652.1,0.00565643]
[1739105132408,0.5754,2652.4,2652.1,0.00565643]
[1739105132798,0.5754,2652.4,2652.1,0.58515643]
[1739105134301,0.5754,2652.4,2652.1,1.16615643]
[1739105134499,1.1815,2652.5,2652.1,1.16615643]
[1739105134698,0.5981,2652.8,2652.2,3.2078]
[1739105135208,0.5594,2652.9,2652.2,3.2078]
[1739105135506,0.00565643,2653.0,2652.5,3.2078]
[1739105135702,0.00565643,2653.0,2652.6,1.7699]
[1739105144301,0.00565643,2653.0,2652.6,1.1719]
[1739105145112,0.00565643,2653.0,2652.6,0.5909]
[1739105145409,3.2078,2652.9,2652.6,0.5909]
[1739105145610,1.1339,2652.8,2652.6,0.5909]
[1739105145799,0.562,2652.7,2652.6,0.5909]
[1739105146611,0.562,2652.7,2652.3,1.1893]
[1739105147309,3.2078,2652.9,2652.3,1.1893]
[1739105147506,0.00565643,2653.0,2652.6,3.2078]
[1739105147702,0.00565643,2653.0,2652.7,0.5601]
[1739105148114,0.00565643,2653.0,2652.8,0.5974]
[1739105151307,0.00565643,2653.0,2652.9,0.5816]
[1739105151514,0.00565643,2653.0,2652.9,3.7894]
[1739105152810,0.00565643,2653.0,2652.9,0.5816]
[1739105157915,0.00565643,2653.0,2652.9,3.7894]
[1739105158315,0.5771,2653.8,2652.9,3.7894]
[1739105158516,0.5771,2653.8,2653.2,3.2078]
[1739105158714,0.5771,2653.8,2653.3,1.1168]
[1739105158914,0.5771,2653.8,2653.4,0.5522]
[1739105161716,1.17,2653.8,2653.4,0.5522]
[1739105162322,1.17,2653.8,2653.3,0.5616]
[1739105162525,0.5451,2653.7,2653.3,0.5616]
[1739105163821,1.17,2653.8,2653.3,0.5616]
[1739105164024,1.17,2653.8,2653.4,1.1239]
[1739105165526,1.17,2653.8,2653.4,0.5705]
[1739105167926,1.17,2653.8,2653.2,3.2078]
[1739105168125,3.2078,2653.6,2653.0,1.7233]
[1739105168531,0.5763,2653.5,2653.0,1.7233]
[1739105168829,0.5763,2653.5,2653.0,0.5582]
[1739105169227,3.2078,2653.3,2652.8,40.8]
[1739105169628,1.1537,2653.2,2652.8,40.8]
[1739105170928,0.5763,2653.5,2652.8,40.8]
[1739105171128,1.1363,2653.5,2652.6,2.917]
[1739105171431,1.1363,2653.5,2652.8,0.592]
[1739105171432,4.34897154,2653.4,2652.8,0.592]
[1739105171634,4.34897154,2653.4,2652.8,41.392]
[1739105171925,3.2078,2653.3,2652.8,41.392]
[1739105172123,3.2078,2653.3,2652.8,0.592]
[1739105172722,1.1363,2653.5,2653.0,3.2078]
[1739105173019,1.1363,2653.5,2653.1,0.6002]
[1739105173223,1.1363,2653.5,2653.2,0.5582]
[1739105174332,0.5937,2653.6,2653.3,0.5457]
[1739105174529,0.5793,2653.8,2653.3,0.5457]
[1739105179540,0.5793,2653.8,2653.2,0.5582]
[1739105182334,3.2078,2653.7,2653.2,0.5582]
[1739105182737,0.5901,2653.6,2653.2,0.5582]
[1739105185843,0.5963,2653.5,2653.2,0.5582]
[1739105187745,0.5963,2653.5,2653.0,0.5639]
[1739105189039,0.5963,2653.5,2652.9,40.8]
[1739105189040,3.2078,2653.4,2652.9,40.8]
[1739105189241,0.5896,2653.3,2652.9,40.8]
[1739105190037,0.5896,2653.3,2652.8,1.1375]
[1739105190548,0.5896,2653.3,2652.8,41.9375]
[1739105192150,0.5896,2653.3,2652.9,0.6045]
[1739105193151,3.2078,2653.4,2652.9,0.6045]
[1739105194454,6.2018,2653.8,2653.0,3.2078]
[1739105194743,6.2018,2653.8,2652.9,0.6045]
[1739105194744,6.2018,2653.8,2653.3,3.2078]
[1739105194950,6.2018,2653.8,2653.4,1.6877]
[1739105195945,3.2078,2653.8,2653.4,1.6877]
[1739105196145,4.9287,2653.8,2653.4,1.6877]
[1739105196449,4.9287,2653.8,2653.4,1.1137]
[1739105198146,4.9287,2653.8,2653.5,0.5586]
[1739105200351,3.7841,2653.8,2653.5,0.5586]
[1739105201752,3.2078,2653.8,2653.5,0.5586]
[1739105206345,3.2078,2653.8,2653.4,1.1137]
[1739105206551,1.1847,2653.7,2653.4,1.1137]
[1739105206951,0.5649,2653.6,2653.4,1.1137]
[1739105210760,0.5649,2653.6,2653.4,0.5496]
[1739105212859,0.5649,2653.6,2653.1,0.5866]
[1739105214862,0.5813,2653.7,2653.1,0.5866]
[1739105215053,0.00565643,2653.9,2653.3,3.2078]
[1739105215366,0.00565643,2653.9,2653.4,0.5662]
[1739105215567,0.00565643,2653.9,2653.4,1.1497]
[1739105217168,0.00565643,2653.9,2653.4,4.3575]
[1739105218256,0.00565643,2653.9,2653.4,1.1497]
[1739105223565,0.60855643,2653.9,2653.4,1.1497]
[1739105224873,0.00565643,2653.9,2653.4,1.1497]
[1739105226375,0.00565643,2653.9,2653.4,1.45213179]
[1739105227068,0.00565643,2653.9,2653.5,40.8]
[1739105227272,0.00565643,2653.9,2653.6,0.5511]
[1739105228282,0.00565643,2653.9,2653.7,3.2078]
[1739105228576,0.00565643,2653.9,2653.8,1.665]
[1739105228782,0.00565643,2653.9,2653.8,2.2623]
[1739105230471,0.00565643,2653.9,2653.8,43.0623]
[1739105231778,0.00565643,2653.9,2653.8,41.3973]
[1739105231970,0.00565643,2653.9,2653.8,0.5973]
[1739105248190,0.5745,2654.4,2653.8,0.5973]
[1739105248392,0.5745,2654.4,2654.0,3.2078]
[1739105250781,0.5745,2654.4,2653.8,0.5973]
[1739105253780,0.5745,2654.4,2653.7,3.2078]
[1739105253983,3.2078,2654.1,2653.4,3.21345643]
[1739105254188,1.1029,2654.0,2653.4,3.21345643]
[1739105254488,3.2078,2653.8,2653.4,0.00565643]
[1739105257294,3.2078,2653.5,2653.4,0.00565643]
[1739105257797,9.2078,2653.5,2652.7,3.2078]
[1739105257995,0.5475,2653.4,2652.4,3.2078]
[1739105258194,1.1405,2653.4,2652.5,40.8]
[1739105258395,1.1405,2653.4,2652.6,0.5641]
[1739105258785,1.1405,2653.4,2652.7,0.5648]
[1739105258991,0.00565643,2653.3,2652.7,3.77825643]
[1739105260896,0.60415643,2653.3,2652.7,0.57045643]
[1739105261300,0.60415643,2653.3,2652.8,3.2078]
[1739105263698,0.60415643,2653.3,2652.9,40.8]
[1739105264799,0.00565643,2653.3,2652.9,40.8]
[1739105265002,0.00565643,2653.3,2652.9,41.358]
[1739105265203,0.00565643,2653.3,2652.9,43.022]
[1739105265696,0.00565643,2653.3,2653.2,3.2078]
[1739105266700,0.00565643,2653.3,2652.9,46.2298]
[1739105271594,0.00565643,2653.3,2653.2,3.2078]
[1739105273304,0.5706,2654.0,2653.2,3.2078]
[1739105273506,0.5706,2654.0,2653.7,3.2078]
[1739105273708,0.5706,2654.0,2653.8,1.1675]
[1739105274503,0.00565643,2654.2,2653.8,1.1675]
[1739105274700,0.00565643,2654.2,2653.8,1.7505]
[1739105279410,3.2078,2654.1,2653.6,0.00565643]
[1739105280219,0.00565643,2654.2,2653.7,3.2078]
[1739105280406,0.00565643,2654.2,2653.8,1.7367]
[1739105286927,0.00565643,2654.2,2654.1,3.2078]
[1739105287528,0.00565643,2654.2,2654.1,44.0078]
[1739105287721,0.00565643,2654.2,2654.1,40.8]
[1739105288525,0.00565643,2654.2,2653.8,4.9445]
[1739105289527,0.00565643,2654.2,2653.8,3.2078]
[1739105292533,0.52744,2654.0,2653.8,2.7078]
[1739105292728,1.1529,2653.9,2653.8,2.2078]
[1739105293330,14.56635247,2653.9,2652.6,3.2078]
[1739105293523,3.2078,2653.2,2652.6,1.1061]
[1739105293726,0.5571,2653.1,2652.6,1.1061]
[1739105293930,0.5571,2653.1,2652.7,40.8]
[1739105294333,1.1529,2653.1,2652.7,40.8]
[1739105298430,0.5571,2653.1,2652.7,40.8]
[1739105301033,3.2078,2652.9,2652.7,40.8]
[1739105301226,3.2078,2652.9,2652.6,0.55865643]
[1739105301836,4.34417675,2652.8,2652.6,0.00565643]
[1739105306037,3.2078,2652.7,2652.6,0.00565643]
[1739105309039,3.2078,2653.0,2652.6,0.00565643]
[1739105314142,3.2078,2653.0,2652.6,1.17025643]
[1739105314642,3.2078,2653.0,2652.7,0.5498]
[1739105316945,0.5626,2652.9,2652.7,0.5498]
[1739105323442,3.2078,2653.0,2652.7,0.5498]
[1739105324756,0.5756,2652.9,2652.7,0.5498]
[1739105325056,5.27880551,2652.9,2652.6,0.00565643]
[1739105325348,1.1638,2652.8,2652.4,6.1248]
[1739105325547,0.52773,2652.5,2651.4,3.2078]
[1739105325747,3.2078,2652.0,2651.6,0.5728]
[1739105326149,3.2078,2652.0,2651.6,41.3728]
[1739105328255,0.00565643,2652.1,2651.6,41.3728]
[1739105330752,3.2078,2652.0,2651.6,40.8]
[1739105330956,0.6011,2651.9,2651.5,0.59785643]
[1739105331360,0.6011,2651.9,2651.5,41.39785643]
[1739105331561,0.6011,2651.9,2651.5,40.80565643]
[1739105331758,3.2078,2651.7,2651.5,0.00565643]
[1739105333557,0.6011,2651.9,2651.5,0.00565643]
[1739105338554,3.2078,2651.6,2651.5,0.00565643]
[1739105343360,3.7866,2651.6,2651.5,0.00565643]
[1739105344257,14.58835514,2651.6,2650.7,3.2078]
[1739105344458,3.2078,2651.3,2650.8,1.1137]
[1739105344765,1.1401,2651.2,2650.8,41.9137]
[1739105344961,5.26000937,2651.2,2650.8,41.9137]
[1739105345165,5.83880937,2651.2,2650.8,41.9137]
[1739105345464,5.83880937,2651.2,2650.8,1.1137]
[1739105346360,5.83880937,2651.2,2650.8,0.5526]
[1739105346964,5.83880937,2651.2,2650.3,20.03825457]
[1739105346965,3.73583,2651.0,2650.1,3.2078]
[1739105347260,3.2078,2651.0,2650.2,0.5859]
[1739105347463,0.00565643,2650.8,2650.3,40.8]
[1739105347858,4.1141917,2650.7,2650.3,40.8]
[1739105348165,4.6739917,2650.7,2650.3,40.8]
[1739105349258,8.4670917,2650.7,2650.1,3.2078]
[1739105349460,3.2078,2650.4,2649.6,1.1543]
[1739105349665,3.2078,2649.9,2649.6,41.9543]
[1739105349859,3.2078,2649.9,2649.3,3.2078]
[1739105350168,5.74112364,2649.8,2649.3,3.2078]
[1739105350464,3.2078,2649.9,2649.3,44.0078]
[1739105350658,3.2078,2649.9,2649.4,0.5702]
[1739105350865,3.2078,2649.9,2649.4,1.7498]
[1739105351058,1.664,2650.1,2649.4,1.7498]
[1739105351455,3.2078,2649.9,2649.4,1.7498]
[1739105351663,3.2078,2649.9,2649.4,1.1543]
[1739105351863,4.9279416,2649.8,2649.3,44.0078]
[1739105352063,3.2078,2649.9,2649.3,44.0078]
[1739105352370,4.3473416,2649.8,2649.3,44.0078]
[1739105352769,4.3473416,2649.8,2649.3,3.2078]
[1739105353561,3.2078,2649.5,2648.6,1.7787]
[1739105353768,0.52828,2649.7,2648.6,1.7787]
[1739105353769,3.2078,2649.2,2648.6,1.7787]
[1739105354165,3.21345643,2649.2,2648.6,1.7787]
[1739105356567,3.21345643,2649.2,2648.7,40.8]
[1739105358865,0.00565643,2649.2,2648.9,3.2078]
[1739105359464,3.21345643,2649.2,2648.7,40.8]
[1739105364571,0.00565643,2649.2,2648.7,40.8]
[1739105366675,0.00565643,2649.2,2648.9,3.2078]
[1739105366862,3.2078,2649.5,2648.9,3.2078]
[1739105367965,3.2078,2649.5,2648.8,0.00565643]
[1739105368172,3.21345643,2649.5,2648.8,0.00565643]
[1739105369368,3.2078,2649.2,2648.8,0.00565643]
[1739105369673,3.2078,2648.9,2648.8,0.00565643]
[1739105373868,3.2078,2648.9,2648.6,1.1832]
[1739105373869,3.2078,2648.9,2648.6,0.5841]
[1739105374569,3.2078,2648.9,2648.5,0.15832507]
[1739105374769,3.2078,2648.6,2648.5,0.15832507]
[1739105375166,13.4497108,2648.6,2647.8,0.548]
[1739105375365,3.2078,2648.1,2647.8,0.548]
[1739105376478,3.7906,2648.5,2647.8,0.548]
[1739105376667,4.8798,2648.8,2647.8,0.548]
[1739105376973,3.2078,2648.8,2648.0,3.2078]
[1739105377271,3.2078,2648.8,2648.1,0.5593]
[1739105377461,3.2078,2648.8,2648.1,1.1265]
[1739105378866,3.2078,2648.5,2648.1,0.5672]
[1739105379670,3.2078,2648.8,2648.1,0.5672]
[1739105380764,3.2078,2648.8,2648.2,40.8]
[1739105380963,3.2078,2648.8,2648.3,0.00425809]
[1739105381165,3.2078,2648.8,2648.3,0.58775809]
[1739105381363,0.5505,2648.9,2648.3,0.58775809]
[1739105381568,0.5505,2648.9,2648.4,0.6004]
[1739105381769,3.2078,2649.1,2648.4,2.2804]
[1739105381974,1.1707,2649.4,2648.6,3.2078]
[1739105382175,1.1707,2649.4,2648.7,0.5675]
[1739105382385,3.2078,2649.2,2648.7,0.5675]
[1739105382678,3.2078,2649.2,2648.4,2.2814]
[1739105382868,4.32980558,2649.1,2648.4,2.8766]
[1739105383065,3.2078,2649.2,2648.4,2.8766]
[1739105383773,3.2078,2648.9,2648.4,1.1956]
[1739105383972,1.1375,2648.8,2648.4,0.5952]
[1739105385377,0.5466,2648.8,2648.4,0.5952]
[1739105385675,3.2078,2649.0,2648.4,0.5952]
[1739105386175,3.2078,2649.3,2648.4,0.5952]
[1739105387378,3.2078,2649.0,2648.4,0.5952]
[1739105387572,0.599,2648.9,2648.4,0.5952]
[1739105388172,3.2078,2649.0,2648.4,0.5952]
[1739105388779,3.2078,2649.0,2648.4,2.2752]
[1739105389172,3.2078,2649.0,2648.6,3.2078]
[1739105389376,0.599,2649.3,2648.7,0.6026]
[1739105389579,3.2078,2649.0,2648.8,0.5865]
[1739105389975,3.2078,2649.0,2648.4,2.2752]
[1739105390182,3.2078,2649.0,2648.5,0.5865]
[1739105390379,0.5728,2648.9,2648.5,0.5865]
[1739105390582,0.6011,2648.8,2648.5,0.5865]
[1739105391474,3.2078,2649.4,2648.6,3.2078]
[1739105391676,4.3522,2649.4,2648.6,3.2078]
[1739105392074,4.3522,2649.4,2648.5,0.5865]
[1739105392477,4.3522,2649.4,2648.6,3.2078]
[1739105393077,4.3522,2649.4,2648.9,0.52843]
[1739105393273,0.00565643,2649.5,2649.0,4.973]
[1739105394582,0.00565643,2649.5,2649.0,6.655]
[1739105394778,0.00565643,2649.5,2649.0,2.8461]
[1739105396187,3.2078,2649.3,2649.0,0.6037]
[1739105396382,0.6034,2649.2,2649.0,0.6037]
[1739105397987,0.6034,2649.2,2648.6,0.6011]
[1739105398285,3.2078,2649.0,2648.6,0.5476]
[1739105399281,0.6014,2649.1,2648.6,0.5476]
[1739105400283,0.6034,2649.2,2648.6,0.5476]
[1739105401683,0.5838,2649.1,2648.6,0.5476]
[1739105404583,0.6034,2649.2,2648.6,0.5476]
[1739105408094,0.00565643,2649.5,2648.9,3.2078]
[1739105408289,0.00565643,2649.5,2649.0,1.182]
[1739105408790,0.00565643,2649.5,2649.1,0.5959]
[1739105409183,0.00565643,2649.5,2649.2,3.2078]
[1739105409390,3.2078,2650.4,2649.4,0.52833]
[1739105409597,3.2078,2650.4,2649.8,3.2078]
[1739105409794,0.5788,2650.3,2649.8,3.2078]
[1739105410301,3.2078,2650.8,2650.2,3.73598]
[1739105410492,0.00565643,2650.3,2650.2,4.8938]
[1739105411198,0.00565643,2650.3,2650.2,1.686]
[1739105414197,0.00565643,2650.3,2650.0,0.6053]
[1739105414407,0.00565643,2650.3,2649.9,0.5521]
[1739105416206,3.2078,2650.1,2649.4,0.6053]
[1739105416401,1.154,2650.0,2649.3,1.689]
[1739105416603,0.6015,2649.9,2649.3,1.689]
[1739105416903,0.6015,2649.9,2649.3,40.8]
[1739105417602,0.5845,2650.0,2649.4,3.2078]
[1739105417808,0.5845,2650.0,2649.3,40.8]
[1739105418999,3.2078,2649.8,2649.3,40.8]
[1739105421209,3.2078,2649.5,2649.2,0.601]
[1739105421410,0.5975,2649.4,2649.2,0.601]
[1739105421612,0.5975,2649.4,2649.2,41.401]
[1739105421915,0.5975,2649.4,2649.1,0.00565643]
[1739105424118,1.1967,2649.4,2649.1,0.00565643]
[1739105424512,0.5975,2649.4,2649.1,0.00565643]
[1739105425111,3.2078,2649.9,2649.1,3.21345643]
[1739105425315,3.2078,2649.9,2649.2,2.2619]
[1739105425519,0.587,2650.0,2649.4,3.2078]
[1739105425811,0.587,2650.0,2649.5,0.6018]
[1739105426810,0.587,2650.0,2649.4,3.2078]
[1739105426811,0.587,2650.0,2649.3,0.5468]
[1739105427012,3.2078,2649.9,2649.3,0.5468]
[1739105427219,3.2078,2649.9,2649.1,3.21345643]
[1739105427220,3.2078,2649.5,2649.1,0.00565643]
[1739105427518,0.587,2649.4,2649.1,0.00565643]
[1739105428018,3.2078,2649.2,2649.1,0.00565643]
[1739105429614,3.2078,2649.2,2648.6,0.5589]
[1739105430013,3.2078,2649.2,2648.7,40.8]
[1739105430212,3.2078,2649.2,2648.5,3.2078]
[1739105430213,4.37838333,2649.1,2648.5,3.2078]
[1739105431912,3.2078,2649.2,2648.5,3.2078]
[1739105432112,3.4769,2649.4,2648.6,0.5539]
[1739105432113,3.2078,2648.9,2648.6,0.5539]
[1739105432817,0.5939,2648.8,2648.6,0.5539]
[1739105434315,3.2078,2648.9,2648.6,0.5539]
[1739105434515,0.00565643,2649.0,2648.6,0.5539]
[1739105436324,0.00565643,2649.0,2648.7,40.8]
[1739105437917,0.00565643,2649.0,2648.6,0.5539]
[1739105438116,3.2078,2648.9,2648.6,0.5539]
[1739105438322,3.2078,2648.9,2648.3,0.00425809]
[1739105438623,1.722,2648.8,2648.3,41.40205809]
[1739105438820,1.1189,2648.8,2648.3,41.40205809]
[1739105440326,0.5485,2648.8,2648.3,41.40205809]
[1739105441025,3.2078,2648.6,2648.3,41.40205809]
[1739105441621,3.754,2648.6,2648.3,41.40205809]
[1739105442425,3.2078,2648.6,2648.3,41.40205809]
[1739105442628,0.00565643,2649.0,2648.4,3.2078]
[1739105442829,0.00565643,2649.0,2648.5,0.572]
[1739105443028,0.61095643,2649.0,2648.5,0.572]
[1739105444027,0.00565643,2649.0,2648.6,40.8]
[1739105444228,0.00565643,2649.0,2648.7,0.5481]
[1739105444623,0.00565643,2649.0,2648.8,0.5807]
[1739105449925,3.2078,2649.6,2648.8,6.5807]
[1739105450224,3.2078,2649.6,2649.1,3.2078]
[1739105450422,3.2078,2649.6,2649.2,1.1712]
[1739105452227,3.2078,2649.6,2649.2,2.8652]
[1739105453335,3.2078,2649.6,2649.3,0.5527]
[1739105454227,1.1454,2649.5,2649.1,0.00565643]
[1739105459235,1.1454,2649.5,2649.3,0.00336165]
[1739105464534,0.5958,2649.5,2649.3,0.00336165]
[1739105464837,3.2078,2649.6,2649.3,0.00336165]
[1739105465237,3.2078,2649.6,2649.3,1.16556165]
[1739105465533,3.2078,2649.6,2649.3,1.74426165]
[1739105465730,3.2078,2649.6,2649.4,40.8]
[1739105468039,0.1,3970.0,2649.4,44.0078]
[1739105468040,3.2078,2650.5,2649.4,44.0078]
[1739105468237,3.7713,2650.5,2649.8,3.2078]
[1739105468436,3.7713,2650.5,2649.9,0.5904]
[1739105468833,0.5635,2650.5,2649.9,0.5904]
[1739105469038,0.5635,2650.5,2650.1,3.2078]
[1739105469337,0.00565643,2650.5,2650.1,3.2078]
[1739105470438,0.00565643,2650.5,2650.4,3.2078]
[1739105470738,0.00565643,2650.5,2650.4,4.8928]
[1739105470934,0.00565643,2650.5,2650.4,10.8928]
[1739105471238,0.5993,2651.2,2650.4,51.6928]
[1739105471436,0.5993,2651.2,2650.7,3.2078]
[1739105471640,0.6052,2651.3,2650.8,0.5599]
[1739105472035,1.1499,2651.7,2650.8,0.5599]
[1739105472235,0.00565643,2651.3,2650.8,0.56555643]
[1739105474739,0.00565643,2651.3,2651.0,3.2078]
[1739105474939,0.00565643,2651.3,2651.0,4.8908]
[1739105475139,0.00565643,2651.3,2651.1,1.1517]
[1739105475442,0.00565643,2651.3,2651.2,1.683]
[1739105477845,0.00565643,2651.3,2651.1,1.1517]
[1739105478145,0.00565643,2651.3,2651.1,2.2559]
[1739105479645,0.00565643,2651.3,2651.1,0.5749]
[1739105479840,0.00565643,2651.3,2650.9,1.98437065]
[1739105480039,0.00565643,2651.3,2650.8,0.00565643]
[1739105480243,3.2078,2651.0,2650.8,0.00565643]
[1739105480437,1.7625,2650.9,2650.8,0.00565643]
[1739105481143,1.7625,2650.9,2650.3,40.8]
[1739105482252,1.7625,2650.9,2650.3,40.80565643]
[1739105482846,1.7625,2650.9,2650.3,44.01345643]
[1739105483254,1.159,2650.9,2650.3,44.01345643]
[1739105484355,1.159,2650.9,2650.3,40.80565643]
[1739105484356,3.2078,2650.7,2650.3,40.80565643]
[1739105485441,3.2078,2650.7,2650.3,0.00565643]
[1739105486152,3.2078,2650.7,2650.0,40.8]
[1739105487454,3.2078,2650.7,2650.1,0.00565643]
[1739105487849,1.159,2650.9,2650.3,3.2078]
[1739105488257,1.159,2650.9,2650.4,1.1397]
[1739105488556,3.2078,2650.7,2650.4,1.1397]
[1739105488854,1.159,2650.9,2650.4,1.1397]
[1739105490248,0.5776,2650.9,2650.4,1.1397]
[1739105490450,3.2078,2651.0,2650.4,1.1397]
[1739105490747,0.5824,2651.2,2650.4,1.1397]
[1739105491053,0.00565643,2651.3,2650.6,3.2078]
[1739105491253,0.00565643,2651.3,2650.7,1.688]
[1739105491455,0.00565643,2651.3,2650.8,41.3914]
[1739105492753,0.00565643,2651.3,2650.9,3.2078]
[1739105492954,0.00565643,2651.3,2651.0,0.5601]
[1739105493553,3.21345643,2651.3,2650.7,1.688]
[1739105493755,0.5782,2651.2,2650.7,1.688]
[1739105494253,0.5782,2651.2,2650.6,3.2078]
[1739105494454,0.5944,2651.1,2650.5,44.2771]
[1739105496056,0.5944,2651.1,2650.5,41.3601]
[1739105499563,0.5944,2651.1,2650.6,3.2078]
[1739105499759,1.1244,2651.2,2650.6,3.2078]
[1739105502358,1.1244,2651.2,2650.5,41.3601]
[1739105502562,3.2078,2651.0,2650.5,41.3601]
[1739105503966,0.5602,2650.9,2650.5,41.3601]
[1739105505262,0.5602,2650.9,2650.5,40.8]
[1739105505463,3.2078,2650.7,2650.2,3.2078]
[1739105505766,0.5865,2650.6,2650.2,3.2078]
[1739105506066,1.1431,2650.6,2650.3,40.8]
[1739105506367,1.1431,2650.6,2650.2,3.2078]
[1739105507562,1.1431,2650.6,2650.1,40.80565643]
[1739105510465,3.2078,2650.4,2650.1,0.00565643]
[1739105512777,3.2078,2651.0,2650.1,0.00565643]
[1739105513073,0.5874,2650.8,2650.1,0.00565643]
[1739105513273,4.3467,2651.0,2650.1,0.00565643]
[1739105513567,3.2078,2651.0,2650.1,3.21345643]
[1739105514971,3.94991638,2650.9,2650.1,0.00565643]
[1739105515168,3.2078,2650.7,2650.1,0.00565643]
[1739105515473,1.1654,2650.6,2650.1,0.00565643]
[1739105516274,0.5596,2650.6,2650.1,0.00565643]
[1739105516774,3.2078,2650.7,2650.1,3.21345643]
[1739105516974,1.1208,2650.9,2650.1,3.21345643]
[1739105517678,1.1208,2650.9,2650.1,0.00565643]
[1739105520675,1.1208,2650.9,2650.2,3.2078]
[1739105520870,0.5619,2650.9,2650.2,3.2078]
[1739105521675,3.2078,2651.0,2650.2,3.2078]
[1739105521980,3.2078,2651.0,2650.3,1.678]
[1739105522175,3.2078,2651.0,2650.4,1.1639]
[1739105522378,3.2078,2651.0,2650.4,1.7138]
[1739105523983,3.2078,2651.0,2650.5,3.2078]
[1739105524284,0.00565643,2651.3,2650.9,3.2078]
[1739105524476,0.00565643,2651.3,2651.0,1.1591]
[1739105525683,3.2078,2651.2,2650.5,1.678]
[1739105526074,0.5544,2651.1,2650.5,1.678]
[1739105526278,0.5569,2651.0,2650.5,1.678]
[1739105528677,0.5569,2651.0,2650.6,1.1815]
[1739105529671,3.7901,2650.9,2650.2,1.678]
[1739105529873,3.7901,2650.9,2650.3,0.597]
[1739105530579,0.5569,2651.0,2650.3,0.597]
[1739105530580,0.5569,2651.0,2650.3,3.8048]
[1739105530780,0.00565643,2651.3,2650.6,3.2078]
[1739105531082,0.00565643,2651.3,2650.7,1.1417]
[1739105531473,0.00565643,2651.3,2650.8,0.597]
[1739105532272,0.00565643,2651.3,2650.9,3.2078]
[1739105532473,0.00565643,2651.3,2650.8,0.597]
[1739105532779,3.2078,2650.9,2650.4,40.8]
[1739105532972,1.7354,2650.8,2650.3,3.7901]
[1739105535482,1.7354,2650.8,2650.3,0.5823]
[1739105538979,1.7354,2650.8,2650.4,40.8]
[1739105549092,4.9432,2650.8,2650.4,40.8]
[1739105551182,1.7354,2650.8,2650.4,41.09444471]
[1739105551490,4.9432,2650.8,2650.4,41.09444471]
[1739105552182,4.9432,2650.8,2650.4,40.8]
[1739105555296,4.9432,2650.8,2650.4,41.4061]
[1739105558295,3.2078,2650.8,2650.4,41.4061]
[1739105560593,3.8103,2651.2,2650.4,44.6139]
[1739105561497,3.2078,2651.2,2650.5,6.4792574]
[1739105561794,0.00565643,2651.3,2650.7,3.2078]
[1739105561994,0.00565643,2651.3,2650.8,0.5544]
[1739105562195,0.00565643,2651.3,2650.9,41.4027]
[1739105563598,3.21345643,2651.3,2650.9,0.6027]
[1739105568001,3.21345643,2651.3,2650.8,0.5567]
[1739105568300,3.2078,2651.0,2650.8,0.5567]
[1739105568603,0.6057,2650.9,2650.8,0.5567]
[1739105570594,3.21345643,2651.3,2650.8,0.5567]
[1739105574100,3.21345643,2651.3,2650.9,40.8]
[1739105574399,3.21345643,2651.3,2651.0,1.1147]
[1739105576702,0.00565643,2651.3,2651.0,1.1147]
[1739105578603,0.00565643,2651.3,2651.1,1.666]
[1739105579697,0.00565643,2651.3,2651.2,40.8]
[1739105580598,0.00565643,2651.3,2651.0,2.53127141]
[1739105580797,3.21345643,2651.3,2650.9,2.917]
[1739105582098,3.2078,2651.0,2650.5,41.8977]
[1739105582404,1.7864,2650.9,2650.5,42.4609]
[1739105582800,1.7864,2650.9,2650.5,42.75707214]
[1739105583200,0.5925,2650.9,2650.5,42.75707214]
[1739105584303,1.1939,2651.2,2650.5,42.75707214]
[1739105584304,1.1939,2651.2,2650.7,3.2078]
[1739105584607,0.00565643,2651.3,2650.7,3.2078]
[1739105586609,3.21345643,2651.3,2650.5,42.75707214]
[1739105587000,3.21345643,2651.3,2650.6,3.2078]
[1739105588004,3.21345643,2651.3,2650.5,42.75707214]
[1739105588805,3.21345643,2651.3,2650.5,42.21027214]
[1739105589009,3.21345643,2651.3,2650.6,0.5581]
[1739105589409,3.21345643,2651.3,2650.6,3.7659]
[1739105590299,3.21345643,2651.3,2650.6,0.5581]
[1739105590703,3.21345643,2651.3,2650.7,3.2078]
[1739105590907,0.00565643,2651.3,2650.7,8.16231471]
[1739105591312,0.00565643,2651.3,2651.0,3.2078]
[1739105591605,3.2078,2651.6,2651.1,1.7302]